[Event "European Amateur-ch U2000 2019"]
[Site "Rhodes"]
[Date "2019.04.06"]
[Round "1.2"]
[White "Minko, Olga"]
[Black "Bozinovic, Boban"]
[Result "0-1"]
[ECO "E77"]
[WhiteElo "1833"]
[BlackElo "1950"]
[Annotator "NA RC"]
[PlyCount "47"]
[EventDate "2019.04.06"]
[EventType "swiss"]
[EventCountry "GRE"]
[SourceTitle "playchess.com"]
[Source "ChessBase"]
[SourceQuality "1"]
[TimeControl "40/5400+30:1800+30"]

1. c4 {[%emt 0:00:26]} Nf6 {[%emt 0:03:12]} 2. Nc3 {[%emt 0:01:20]} g6 {[%emt 0:01:31]} 3. e4 {[%emt 0:00:37]} d6 {[%emt 0:00:06]} 4. d4 {[%emt 0:00:12]} Bg7 {[%emt 0:00:07]} 5. f4 {[%emt 0:01:06]} c5 {[%emt 0:15:01]} 6. d5 {[%emt 0:01:39]} O-O {[%emt 0:00:41]} 7. Nf3 {[%emt 0:00:26]} e6 {[%emt 0:00:34]} 8. Be2 {[%emt 0:00:50]} exd5 {[%emt 0:00:27]} 9. exd5 {[%emt 0:00:03]} Re8 {[%emt 0:06:01]} 10. O-O {[%emt 0:00:07]} Na6 {[%emt 0:00:21]} 11. Bd3 {[%emt 0:00:54]} Nc7 {[%emt 0:04:56]} 12. a4 {[%emt 0:03:24]} Na6 {[%emt 0:09:53]} 13. f5 {[%emt 0:15:49]} gxf5 {[%emt 0:12:30]} 14. Nh4 {[%emt 0:23:36]} Ng4 {[%emt 0:09:31]} 15. g3 {[%emt 0:09:16]} Qf6 {[%emt 0:13:20]} 16. Nb5 {[%emt 0:00:00]} Nb4 {[%emt 0:13:12]} 17. Bxf5 {[%emt 0:00:00]} Ne3 {[%emt 0:05:49]} 18. Bxe3 {[%emt 0:00:00]} Bxf5 {[%emt 0:01:01]} 19. Nxf5 {[%emt 0:00:00]} Rxe3 {[%emt 0:00:29]} 20. Nxe3 {[%emt 0:00:00]} Qg5 {[%emt 0:00:40]} 21. Nf5 {[%emt 0:00:00]} Bxb2 {[%emt 0:00:21]} 22. Rb1 {[%emt 0:00:00]} Be5 {[%emt 0:00:08]} 23. Qc1 {[%emt 0:02:57]} Qh5 {[%emt 0:00:58]} 24. Nh6+ {[%emt 0:00:32]} 0-1

[Event "European Amateur-ch U2000 2019"]
[Site "Rhodes"]
[Date "2019.04.06"]
[Round "1.3"]
[White "Nagy, Laszlo Bence"]
[Black "Kostov, Deyan Samuil"]
[Result "0-1"]
[ECO "D24"]
[WhiteElo "1978"]
[BlackElo "1830"]
[Annotator "NA RC"]
[PlyCount "46"]
[EventDate "2019.04.06"]
[EventType "swiss"]
[EventCountry "GRE"]
[SourceTitle "playchess.com"]
[Source "ChessBase"]
[SourceQuality "1"]
[TimeControl "40/5400+30:1800+30"]

1. d4 d5 {[%emt 0:00:00]} 2. c4 {[%emt 0:00:00]} dxc4 {[%emt 0:00:00]} 3. Nf3 {[%emt 0:00:00]} a6 {[%emt 0:00:20]} 4. a4 {[%emt 0:00:44]} Nf6 {[%emt 0:00:08]} 5. e3 {[%emt 0:00:12]} Bg4 {[%emt 0:00:07]} 6. Bxc4 {[%emt 0:00:16]} e6 {[%emt 0:00:51]} 7. O-O {[%emt 0:03:57]} Nc6 {[%emt 0:01:55]} 8. Nc3 {[%emt 0:01:02]} Bd6 {[%emt 0:00:36]} 9. Qe2 {[%emt 0:06:44]} O-O {[%emt 0:01:27]} 10. Rd1 {[%emt 0:00:36]} e5 {[%emt 0:03:24]} 11. d5 {[%emt 0:02:31]} Na5 {[%emt 0:06:24]} 12. Bd3 {[%emt 0:03:12]} Nb3 {[%emt 0:04:43]} 13. Rb1 {[%emt 0:00:18]} Qe7 {[%emt 0:03:33]} 14. e4 {[%emt 0:03:47]} Nd4 {[%emt 0:01:07]} 15. Qe3 {[%emt 0:01:08]} Bc5 {[%emt 0:00:26]} 16. Nxd4 {[%emt 0:08:19]} exd4 {[%emt 0:01:55]} 17. Qf4 {[%emt 0:07:40]} Bd6 {[%emt 0:07:08]} 18. e5 {[%emt 0:06:18]} Bxe5 {[%emt 0:00:36]} 19. d6 {[%emt 0:03:00]} Qxd6 {[%emt 0:06:46]} 20. Qg5 {[%emt 0:09:44]} dxc3 {[%emt 0:02:00]} 21. f3 {[%emt 0:11:07]} Be6 {[%emt 0:13:17]} 22. Bc2 {[%emt 0:01:27]} Bxh2+ {[%emt 0:03:02]} 23. Kf2 {[%emt 0:02:03]} Ng4+ {[%emt 0:03:58]} 0-1

[Event "European Amateur-ch U2000 2019"]
[Site "Rhodes"]
[Date "2019.04.06"]
[Round "1.3"]
[White "Nagy, Laszlo Bence"]
[Black "Kostov, Deyan Samuil"]
[Result "*"]
[ECO "E61"]
[WhiteElo "1978"]
[BlackElo "1830"]
[Annotator "NA"]
[PlyCount "58"]
[EventDate "2019.04.06"]
[EventType "swiss"]
[EventCountry "GRE"]
[SourceTitle "playchess.com"]
[Source "ChessBase"]
[SourceQuality "1"]
[TimeControl "40/5400+30:1800+30"]

1. d4 {[%emt 0:00:00]} Nf6 {[%emt 0:00:00]} 2. c4 {[%emt 0:00:00]} g6 {[%emt 0:00:19]} 3. Nc3 {[%emt 0:00:12]} Bg7 {[%emt 0:00:09]} 4. Nf3 {[%emt 0:00:13]} O-O {[%emt 0:00:27]} 5. Bf4 {[%emt 0:00:24]} d6 {[%emt 0:01:00]} 6. e3 {[%emt 0:00:18]} Nh5 {[%emt 0:04:29]} 7. Bg5 {[%emt 0:00:18]} h6 {[%emt 0:00:37]} 8. Bh4 {[%emt 0:00:05]} g5 {[%emt 0:00:27]} 9. Bg3 {[%emt 0:00:05]} Nxg3 {[%emt 0:00:09]} 10. hxg3 {[%emt 0:00:06]} Nd7 {[%emt 0:00:41]} 11. Bd3 {[%emt 0:02:14]} Nf6 {[%emt 0:02:54]} 12. Qc2 {[%emt 0:01:10]} Re8 {[%emt 0:02:18]} 13. Rd1 {[%emt 0:05:11]} Bg4 {[%emt 0:01:18]} 14. O-O {[%emt 0:01:06]} c6 {[%emt 0:02:42]} 15. Rd2 {[%emt 0:08:09]} Qc7 {[%emt 0:11:06]} 16. Rc1 {[%emt 0:06:05]} e5 {[%emt 0:02:39]} 17. Bf5 {[%emt 0:09:00]} Bxf5 {[%emt 0:16:11]} 18. Qxf5 {[%emt 0:00:18]} e4 {[%emt 0:00:21]} 19. Nh2 {[%emt 0:03:25]} Qc8 {[%emt 0:00:37]} 20. Qa5 {[%emt 0:01:44]} Re7 {[%emt 0:06:41]} 21. d5 {[%emt 0:03:21]} Qf5 {[%emt 0:01:07]} 22. Qa3 {[%emt 0:00:20]} c5 {[%emt 0:02:59]} 23. b4 {[%emt 0:01:58]} b6 {[%emt 0:06:26]} 24. Qb3 {[%emt 0:06:55]} h5 {[%emt 0:00:38]} 25. bxc5 {[%emt 0:01:54]} bxc5 {[%emt 0:00:20]} 26. Rb2 {[%emt 0:10:08]} h4 {[%emt 0:00:40]} 27. g4 {[%emt 0:00:17]} Nxg4 {[%emt 0:00:29]} 28. Nxg4 {[%emt 0:00:12]} Qxg4 {[%emt 0:00:08]} 29. Qd1 {[%emt 0:00:10]} Qxd1+ {[%emt 0:00:25]} *

[Event "European Amateur-ch U2000 2019"]
[Site "Rhodes"]
[Date "2019.04.06"]
[Round "1.4"]
[White "Mihalache, Paul-Stelian"]
[Black "Boesch, Heinz"]
[Result "1/2-1/2"]
[ECO "D04"]
[WhiteElo "1830"]
[BlackElo "1929"]
[Annotator "NA"]
[PlyCount "44"]
[EventDate "2019.04.06"]
[EventType "swiss"]
[EventCountry "GRE"]
[SourceTitle "playchess.com"]
[Source "ChessBase"]
[SourceQuality "1"]
[TimeControl "40/5400+30:1800+30"]

1. d4 {[%emt 0:00:00]} d5 {[%emt 0:00:00]} 2. Nf3 {[%emt 0:00:00]} Nf6 {[%emt 0:00:00]} 3. Nbd2 {[%emt 0:00:52]} Bf5 {[%emt 0:00:36]} 4. e3 {[%emt 0:00:49]} e6 {[%emt 0:01:58]} 5. Ne5 {[%emt 0:02:16]} h6 {[%emt 0:04:18]} 6. Be2 {[%emt 0:02:26]} Nbd7 {[%emt 0:00:39]} 7. a3 {[%emt 0:01:10]} Nxe5 {[%emt 0:03:03]} 8. dxe5 {[%emt 0:00:41]} Nd7 {[%emt 0:00:10]} 9. f4 {[%emt 0:01:08]} Be7 {[%emt 0:01:50]} 10. Nf3 {[%emt 0:00:54]} O-O {[%emt 0:00:59]} 11. O-O {[%emt 0:00:11]} Nc5 {[%emt 0:02:43]} 12. c3 {[%emt 0:04:43]} a5 {[%emt 0:06:33]} 13. Nd4 {[%emt 0:03:37]} Be4 {[%emt 0:11:42]} 14. f5 {[%emt 0:04:06]} exf5 {[%emt 0:05:58]} 15. Nxf5 {[%emt 0:01:12]} Nd7 {[%emt 0:12:43]} 16. Ng3 {[%emt 0:09:40]} Nxe5 {[%emt 0:01:01]} 17. Nxe4 {[%emt 0:04:07]} dxe4 {[%emt 0:00:10]} 18. Qc2 {[%emt 0:01:41]} Qd5 {[%emt 0:05:52]} 19. b3 {[%emt 0:01:25]} Rad8 {[%emt 0:00:58]} 20. c4 {[%emt 0:02:01]} Qc6 {[%emt 0:01:26]} 21. Bb2 {[%emt 0:01:47]} Nd3 {[%emt 0:02:19]} 22. Bc3 {[%emt 0:01:48]} a4 {[%emt 0:00:59]} 1/2-1/2

[Event "European Amateur-ch U2000 2019"]
[Site "Rhodes"]
[Date "2019.04.06"]
[Round "1.5"]
[White "Suliborski, Artur"]
[Black "Petukhov, Igor"]
[Result "1-0"]
[ECO "C60"]
[WhiteElo "1926"]
[BlackElo "1819"]
[Annotator "NA"]
[PlyCount "81"]
[EventDate "2019.04.06"]
[EventType "swiss"]
[EventCountry "GRE"]
[SourceTitle "playchess.com"]
[Source "ChessBase"]
[SourceQuality "1"]
[TimeControl "40/5400+30:1800+30"]

1. e4 {[%emt 0:00:00]} e5 {[%emt 0:00:00]} 2. Nf3 {[%emt 0:00:00]} Nc6 {[%emt 0:01:55]} 3. Bb5 {[%emt 0:00:00]} Nge7 {[%emt 0:02:00]} 4. O-O {[%emt 0:00:03]} Ng6 {[%emt 0:00:44]} 5. c3 {[%emt 0:00:22]} Be7 {[%emt 0:00:22]} 6. d4 {[%emt 0:00:14]} Bf6 {[%emt 0:02:10]} 7. d5 {[%emt 0:02:35]} Nce7 {[%emt 0:01:43]} 8. c4 {[%emt 0:04:03]} O-O {[%emt 0:00:28]} 9. Nc3 {[%emt 0:01:37]} d6 {[%emt 0:01:18]} 10. Be3 {[%emt 0:00:22]} Bg4 {[%emt 0:01:49]} 11. h3 {[%emt 0:00:18]} Bd7 {[%emt 0:08:02]} 12. c5 {[%emt 0:03:04]} Bxb5 {[%emt 0:06:50]} 13. Nxb5 {[%emt 0:00:08]} Nc8 {[%emt 0:01:34]} 14. b4 {[%emt 0:00:36]} a6 {[%emt 0:01:47]} 15. Nc3 {[%emt 0:00:55]} Qd7 {[%emt 0:01:48]} 16. a4 {[%emt 0:01:21]} Be7 {[%emt 0:10:28]} 17. a5 {[%emt 0:01:52]} Na7 {[%emt 0:03:47]} 18. Kh2 {[%emt 0:05:26]} f5 {[%emt 0:02:19]} 19. exf5 {[%emt 0:00:23]} Qxf5 {[%emt 0:01:09]} 20. Nd2 {[%emt 0:01:05]} Nb5 {[%emt 0:08:18]} 21. Nxb5 {[%emt 0:00:47]} axb5 {[%emt 0:00:00]} 22. g3 {[%emt 0:01:42]} e4 {[%emt 0:03:53]} 23. Nb3 {[%emt 0:07:54]} Ne5 {[%emt 0:04:09]} 24. Nd4 {[%emt 0:03:05]} Nf3+ {[%emt 0:00:19]} 25. Nxf3 {[%emt 0:01:47]} exf3 {[%emt 0:01:37]} 26. c6 {[%emt 0:01:46]} bxc6 {[%emt 0:02:03]} 27. dxc6 {[%emt 0:00:05]} Rf6 {[%emt 0:02:17]} 28. Qb3+ {[%emt 0:02:58]} Kh8 {[%emt 0:01:26]} 29. Rfd1 {[%emt 0:00:33]} Re6 {[%emt 0:00:16]} 30. Rd5 {[%emt 0:01:21]} Re5 {[%emt 0:01:22]} 31. Rad1 {[%emt 0:00:58]} Qe6 {[%emt 0:04:08]} 32. Qd3 {[%emt 0:01:31]} Re4 {[%emt 0:03:11]} 33. Rxb5 {[%emt 0:02:23]} d5 {[%emt 0:02:11]} 34. Qxd5 {[%emt 0:02:41]} Qxd5 {[%emt 0:04:13]} 35. Rd2 {[%emt 0:00:36]} Rxb4 {[%emt 0:00:24]} 36. Rdxd5 {[%emt 0:01:29]} Re4 {[%emt 0:07:06]} 37. a6 {[%emt 0:00:26]} Bf6 {[%emt 0:00:53]} 38. a7 {[%emt 0:00:33]} Re6 {[%emt 0:01:05]} 39. Rb8+ Re8 {[%emt 0:00:00]} 40. Rxa8 {[%emt 0:00:43]} Rxa8 {[%emt 0:00:02]} 41. Rb5 {[%emt 0:00:08]} 1-0

[Event "European Amateur-ch U2000 2019"]
[Site "Rhodes"]
[Date "2019.04.06"]
[Round "1.6"]
[White "Ruzic, Pia Marie"]
[Black "Flis, Pawel"]
[Result "1-0"]
[ECO "A01"]
[WhiteElo "1800"]
[BlackElo "1903"]
[Annotator "NA RC"]
[PlyCount "98"]
[EventDate "2019.04.06"]
[EventType "swiss"]
[EventCountry "GRE"]
[SourceTitle "playchess.com"]
[Source "ChessBase"]
[SourceQuality "1"]
[TimeControl "40/5400+30:1800+30"]

1. b3 {[%emt 0:00:00]} Nf6 {[%emt 0:00:00]} 2. Bb2 {[%emt 0:00:00]} g6 {[%emt 0:00:30]} 3. Bxf6 {[%emt 0:00:06]} exf6 {[%emt 0:00:02]} 4. c4 {[%emt 0:00:16]} Bg7 {[%emt 0:01:39]} 5. Nc3 {[%emt 0:00:22]} f5 {[%emt 0:02:02]} 6. Rc1 {[%emt 0:00:38]} b6 {[%emt 0:07:15]} 7. e3 {[%emt 0:06:16]} Bb7 {[%emt 0:00:25]} 8. d4 {[%emt 0:00:54]} d6 {[%emt 0:06:54]} 9. Nf3 {[%emt 0:01:18]} O-O {[%emt 0:07:44]} 10. g3 {[%emt 0:01:03]} Nd7 {[%emt 0:16:35]} 11. Bg2 {[%emt 0:00:32]} Nf6 {[%emt 0:00:39]} 12. O-O {[%emt 0:03:00]} Re8 {[%emt 0:01:39]} 13. d5 {[%emt 0:06:47]} Ne4 {[%emt 0:07:40]} 14. Nxe4 {[%emt 0:04:23]} fxe4 {[%emt 0:00:07]} 15. Nd4 {[%emt 0:00:12]} Qe7 {[%emt 0:03:16]} 16. Nc6 {[%emt 0:07:48]} Qd7 {[%emt 0:09:35]} 17. Nd4 {[%emt 0:00:53]} Re7 {[%emt 0:01:47]} 18. h4 {[%emt 0:10:25]} Bxd4 {[%emt 0:10:23]} 19. Qxd4 {[%emt 0:02:52]} Qf5 {[%emt 0:00:14]} 20. Kh2 {[%emt 0:02:40]} a5 {[%emt 0:04:26]} 21. Bh3 {[%emt 0:03:03]} Qf3 {[%emt 0:01:05]} 22. Bg2 {[%emt 0:00:29]} Qf5 {[%emt 0:02:03]} 23. Bh3 {[%emt 0:01:11]} Qe5 {[%emt 0:01:08]} 24. Rcd1 {[%emt 0:02:23]} Qh5 {[%emt 0:04:04]} 25. Qf6 {[%emt 0:05:59]} Rae8 {[%emt 0:02:16]} 26. g4 {[%emt 0:01:56]} Qe5+ {[%emt 0:00:37]} 27. Qxe5 {[%emt 0:00:41]} Rxe5 {[%emt 0:00:01]} 28. Kg3 {[%emt 0:03:02]} Bc8 {[%emt 0:01:42]} 29. g5 {[%emt 0:03:55]} Bxh3 {[%emt 0:01:25]} 30. Kxh3 {[%emt 0:00:07]} Rf5 {[%emt 0:01:42]} 31. Rd4 {[%emt 0:03:44]} f6 {[%emt 0:01:29]} 32. gxf6 {[%emt 0:03:05]} Rxf6 {[%emt 0:00:22]} 33. Kg4 {[%emt 0:00:37]} h5+ {[%emt 0:00:49]} 34. Kh3 {[%emt 0:01:54]} Kg7 {[%emt 0:00:23]} 35. Kg2 {[%emt 0:00:31]} Re5 {[%emt 0:00:52]} 36. f4 {[%emt 0:02:04]} exf3+ {[%emt 0:02:59]} 37. Rxf3 {[%emt 0:00:00]} g5 {[%emt 0:00:23]} 38. hxg5 {[%emt 0:02:45]} Rxg5+ {[%emt 0:00:00]} 39. Rg3 {[%emt 0:00:23]} Rff5 {[%emt 0:01:45]} 40. Re4 {[%emt 0:03:08]} Rxg3+ {[%emt 0:00:10]} 41. Kxg3 {[%emt 0:00:13]} Kg6 {[%emt 0:04:16]} 42. Rf4 {[%emt 0:02:05]} Rxf4 {[%emt 0:09:43]} 43. exf4 {[%emt 0:01:27]} Kf5 {[%emt 0:00:44]} 44. Kh4 {[%emt 0:05:49]} Kxf4 {[%emt 0:00:09]} 45. Kxh5 {[%emt 0:00:06]} b5 {[%emt 0:01:02]} 46. Kg6 {[%emt 0:07:51]} bxc4 {[%emt 0:00:23]} 47. bxc4 {[%emt 0:00:21]} Ke5 {[%emt 0:01:16]} 48. Kf7 {[%emt 0:00:39]} Kd4 {[%emt 0:00:08]} 49. Ke6 {[%emt 0:00:23]} Kxc4 {[%emt 0:00:14]} 1-0

[Event "European Amateur-ch U2000 2019"]
[Site "Rhodes"]
[Date "2019.04.06"]
[Round "1.7"]
[White "Zakharov, Denis"]
[Black "Florea, Dorina"]
[Result "1/2-1/2"]
[ECO "B30"]
[WhiteElo "1889"]
[BlackElo "1734"]
[Annotator "NA"]
[PlyCount "94"]
[EventDate "2019.04.06"]
[EventType "swiss"]
[EventCountry "GRE"]
[SourceTitle "playchess.com"]
[Source "ChessBase"]
[SourceQuality "1"]
[TimeControl "40/5400+30:1800+30"]

1. Nf3 {[%emt 0:00:00]} Nf6 {[%emt 0:00:36]} 2. g3 {[%emt 0:00:00]} c5 {[%emt 0:00:58]} 3. Bg2 {[%emt 0:00:00]} Nc6 {[%emt 0:00:23]} 4. O-O {[%emt 0:00:00]} e6 {[%emt 0:00:39]} 5. d3 {[%emt 0:00:00]} d6 {[%emt 0:00:39]} 6. e4 {[%emt 0:00:11]} Be7 {[%emt 0:00:54]} 7. Nbd2 {[%emt 0:00:45]} Nd7 {[%emt 0:01:23]} 8. c3 {[%emt 0:01:26]} Nde5 {[%emt 0:00:35]} 9. Ne1 {[%emt 0:03:44]} O-O {[%emt 0:03:14]} 10. f4 {[%emt 0:00:21]} Ng6 {[%emt 0:01:15]} 11. h4 {[%emt 0:03:01]} f5 {[%emt 0:01:25]} 12. exf5 {[%emt 0:00:33]} Rxf5 {[%emt 0:02:22]} 13. h5 {[%emt 0:07:05]} Nh8 {[%emt 0:00:38]} 14. g4 {[%emt 0:08:36]} Rf8 {[%emt 0:00:59]} 15. Qe2 {[%emt 0:02:11]} Nf7 {[%emt 0:00:47]} 16. Ne4 {[%emt 0:21:56]} e5 {[%emt 0:04:46]} 17. f5 {[%emt 0:00:28]} h6 {[%emt 0:02:23]} 18. Nf3 {[%emt 0:01:54]} d5 {[%emt 0:02:11]} 19. Ng3 {[%emt 0:00:09]} Bf6 {[%emt 0:01:23]} 20. Rb1 {[%emt 0:03:27]} b6 {[%emt 0:00:53]} 21. b4 {[%emt 0:01:59]} cxb4 {[%emt 0:01:34]} 22. cxb4 {[%emt 0:00:02]} Re8 {[%emt 0:00:53]} 23. Re1 {[%emt 0:03:35]} Bb7 {[%emt 0:00:36]} 24. Bd2 {[%emt 0:12:49]} Rc8 {[%emt 0:02:12]} 25. Rbc1 {[%emt 0:00:22]} b5 {[%emt 0:02:23]} 26. a3 {[%emt 0:04:28]} a6 {[%emt 0:02:12]} 27. Qd1 {[%emt 0:00:16]} Qb6+ {[%emt 0:03:18]} 28. Be3 {[%emt 0:01:07]} d4 {[%emt 0:00:35]} 29. Bf2 {[%emt 0:00:18]} Ne7 {[%emt 0:00:52]} 30. Ne4 {[%emt 0:03:15]} Nd5 {[%emt 0:01:37]} 31. Rxc8 {[%emt 0:12:11]} Rxc8 {[%emt 0:00:27]} 32. Nc5 {[%emt 0:00:13]} Nf4 {[%emt 0:01:27]} 33. Bf1 {[%emt 0:04:06]} Qc6 {[%emt 0:01:06]} 34. Nxb7 {[%emt 0:01:10]} Qxb7 {[%emt 0:00:20]} 35. Bg3 {[%emt 0:00:26]} Ng5 {[%emt 0:01:07]} 36. Nxg5 {[%emt 0:00:21]} hxg5 {[%emt 0:02:30]} 37. Bxf4 {[%emt 0:01:28]} exf4 {[%emt 0:01:35]} 38. Bg2 {[%emt 0:00:09]} Qf7 {[%emt 0:02:13]} 39. Re6 {[%emt 0:00:14]} Qa7 {[%emt 0:02:23]} 40. Bd5 {[%emt 0:00:00]} Kh7 {[%emt 0:00:00]} 41. h6 {[%emt 0:11:18]} Rc3 {[%emt 0:03:40]} 42. Re8 {[%emt 0:20:58]} Qc7 {[%emt 0:02:08]} 43. Bg8+ {[%emt 0:00:55]} Kxh6 {[%emt 0:02:14]} 44. Re1 {[%emt 0:00:58]} g6 {[%emt 0:02:11]} 45. fxg6 {[%emt 0:01:11]} Kxg6 {[%emt 0:00:25]} 46. Qe2 {[%emt 0:01:00]} Kg7 {[%emt 0:00:47]} 47. Bd5 {[%emt 0:00:29]} Rc1 {[%emt 0:03:29]} 1/2-1/2

[Event "European Amateur-ch U2000 2019"]
[Site "Rhodes"]
[Date "2019.04.06"]
[Round "1.8"]
[White "Mohnblatt, Daniel"]
[Black "Wlogalski, Olivier"]
[Result "0-1"]
[ECO "A35"]
[WhiteElo "1708"]
[BlackElo "1853"]
[Annotator "NA"]
[PlyCount "64"]
[EventDate "2019.04.06"]
[EventType "swiss"]
[EventCountry "GRE"]
[SourceTitle "playchess.com"]
[Source "ChessBase"]
[SourceQuality "1"]
[TimeControl "40/5400+30:1800+30"]

1. c4 {[%emt 0:00:00]} g6 {[%emt 0:00:12]} 2. Nc3 {[%emt 0:00:00]} Bg7 {[%emt 0:00:15]} 3. Nf3 {[%emt 0:01:13]} c5 {[%emt 0:01:04]} 4. e3 {[%emt 0:01:41]} d6 {[%emt 0:02:53]} 5. Be2 {[%emt 0:00:32]} Nc6 {[%emt 0:01:33]} 6. O-O {[%emt 0:01:37]} e5 {[%emt 0:02:35]} 7. Rb1 {[%emt 0:02:29]} Nge7 {[%emt 0:01:13]} 8. a3 {[%emt 0:02:34]} a5 {[%emt 0:00:13]} 9. e4 {[%emt 0:06:57]} f5 {[%emt 0:06:20]} 10. d3 {[%emt 0:00:43]} O-O {[%emt 0:03:23]} 11. g3 {[%emt 0:03:01]} f4 {[%emt 0:09:54]} 12. Nh4 {[%emt 0:06:33]} Nd4 {[%emt 0:10:04]} 13. Nd5 {[%emt 0:05:54]} Nxd5 {[%emt 0:03:25]} 14. cxd5 {[%emt 0:00:20]} Bh3 {[%emt 0:07:32]} 15. Re1 {[%emt 0:02:02]} Qf6 {[%emt 0:08:22]} 16. Kh1 {[%emt 0:09:05]} fxg3 {[%emt 0:09:30]} 17. fxg3 {[%emt 0:01:22]} Qf2 {[%emt 0:00:38]} 18. Bg5 {[%emt 0:08:54]} h6 {[%emt 0:04:24]} 19. Bg4 {[%emt 0:05:25]} hxg5 {[%emt 0:02:32]} 20. Bxh3 {[%emt 0:01:28]} gxh4 {[%emt 0:00:14]} 21. Rf1 {[%emt 0:03:24]} Qe2 {[%emt 0:01:19]} 22. Be6+ {[%emt 0:01:42]} Kh7 {[%emt 0:00:15]} 23. Qxe2 {[%emt 0:03:32]} Nxe2 {[%emt 0:00:15]} 24. Bg4 {[%emt 0:00:10]} Nd4 {[%emt 0:00:23]} 25. gxh4 {[%emt 0:00:27]} Rxf1+ {[%emt 0:00:25]} 26. Rxf1 {[%emt 0:00:06]} Rf8 {[%emt 0:00:13]} 27. Rg1 {[%emt 0:03:30]} Rf2 {[%emt 0:01:03]} 28. Rg2 {[%emt 0:02:10]} Rxg2 {[%emt 0:00:36]} 29. Kxg2 {[%emt 0:00:06]} Bh6 {[%emt 0:00:13]} 30. Bc8 {[%emt 0:06:20]} b5 {[%emt 0:00:40]} 31. Bd7 {[%emt 0:00:31]} a4 {[%emt 0:00:25]} 32. Bc6 {[%emt 0:00:18]} Bc1 {[%emt 0:00:11]} 0-1

[Event "European Amateur-ch U2000 2019"]
[Site "Rhodes"]
[Date "2019.04.06"]
[Round "1.9"]
[White "Jamba, Alexandru"]
[Black "Zanfir, Iulian"]
[Result "1-0"]
[ECO "B77"]
[WhiteElo "1852"]
[BlackElo "1699"]
[Annotator "NA"]
[PlyCount "77"]
[EventDate "2019.04.06"]
[EventType "swiss"]
[EventCountry "GRE"]
[SourceTitle "playchess.com"]
[Source "ChessBase"]
[SourceQuality "1"]
[TimeControl "40/5400+30:1800+30"]

1. e4 {[%emt 0:00:00]} c5 {[%emt 0:00:00]} 2. Nf3 {[%emt 0:00:00]} Nc6 {[%emt 0:00:00]} 3. d4 {[%emt 0:00:00]} cxd4 {[%emt 0:00:00]} 4. Nxd4 {[%emt 0:00:02]} g6 {[%emt 0:00:12]} 5. Nc3 {[%emt 0:01:51]} Bg7 {[%emt 0:00:21]} 6. Be3 {[%emt 0:00:16]} Nf6 {[%emt 0:01:45]} 7. Bc4 {[%emt 0:02:36]} O-O {[%emt 0:01:08]} 8. Bb3 {[%emt 0:00:27]} d6 {[%emt 0:00:45]} 9. f3 {[%emt 0:00:30]} Bd7 {[%emt 0:01:25]} 10. Qd2 {[%emt 0:00:28]} Nxd4 {[%emt 0:04:23]} 11. Bxd4 {[%emt 0:00:22]} Bc6 {[%emt 0:00:25]} 12. O-O-O {[%emt 0:03:58]} Nd7 {[%emt 0:05:27]} 13. Bxg7 {[%emt 0:03:14]} Kxg7 {[%emt 0:00:13]} 14. h4 {[%emt 0:00:31]} Qa5 {[%emt 0:06:59]} 15. h5 {[%emt 0:03:38]} g5 {[%emt 0:09:21]} 16. h6+ {[%emt 0:05:26]} Kh8 {[%emt 0:05:52]} 17. Rh5 {[%emt 0:03:25]} f6 {[%emt 0:15:45]} 18. f4 {[%emt 0:01:51]} Nc5 {[%emt 0:00:00]} 19. Kb1 {[%emt 0:18:35]} Nxb3 {[%emt 0:02:27]} 20. axb3 {[%emt 0:03:12]} Rg8 {[%emt 0:01:56]} 21. g3 {[%emt 0:03:03]} Be8 {[%emt 0:07:54]} 22. Rhh1 {[%emt 0:06:14]} Bf7 {[%emt 0:06:32]} 23. Qe3 {[%emt 0:04:29]} Qb6 {[%emt 0:08:56]} 24. Qf3 {[%emt 0:07:30]} a5 {[%emt 0:06:23]} 25. e5 {[%emt 0:02:22]} g4 {[%emt 0:06:05]} 26. Qe2 {[%emt 0:03:43]} fxe5 {[%emt 0:02:59]} 27. fxe5 {[%emt 0:00:17]} dxe5 {[%emt 0:02:20]} 28. Rd7 {[%emt 0:04:41]} Qe6 {[%emt 0:02:06]} 29. Nd5 {[%emt 0:03:02]} Rg5 {[%emt 0:00:07]} 30. Nc7 {[%emt 0:07:59]} Qxd7 {[%emt 0:00:36]} 31. Nxa8 {[%emt 0:00:06]} Qc8 {[%emt 0:02:27]} 32. Qe3 {[%emt 0:03:21]} Qf5 {[%emt 0:00:33]} 33. Nb6 {[%emt 0:00:53]} Rh5 {[%emt 0:00:20]} 34. Rxh5 {[%emt 0:00:25]} Qxh5 {[%emt 0:00:03]} 35. Nd7 {[%emt 0:00:31]} e4 {[%emt 0:00:44]} 36. Qd4+ {[%emt 0:01:14]} e5 {[%emt 0:00:31]} 37. Nxe5 {[%emt 0:00:09]} Kg8 {[%emt 0:00:51]} 38. Qd8+ {[%emt 0:00:56]} Be8 {[%emt 0:00:08]} 39. Qf6 {[%emt 0:00:11]} 1-0

[Event "European Amateur-ch U2000 2019"]
[Site "Rhodes"]
[Date "2019.04.06"]
[Round "1.10"]
[White "Mohnblatt, Nicolas"]
[Black "Zielinski, Olgierd"]
[Result "1/2-1/2"]
[ECO "A43"]
[WhiteElo "1685"]
[BlackElo "1850"]
[Annotator "NA"]
[PlyCount "40"]
[EventDate "2019.04.06"]
[EventType "swiss"]
[EventCountry "GRE"]
[SourceTitle "playchess.com"]
[Source "ChessBase"]
[SourceQuality "1"]
[TimeControl "40/5400+30:1800+30"]

1. d4 {[%emt 0:00:00]} Nf6 {[%emt 0:00:00]} 2. Nc3 {[%emt 0:00:00]} c5 {[%emt 0:00:00]} 3. d5 {[%emt 0:00:01]} d6 {[%emt 0:00:00]} 4. e4 {[%emt 0:00:35]} g6 {[%emt 0:00:02]} 5. Bb5+ {[%emt 0:02:16]} Bd7 {[%emt 0:00:14]} 6. a4 {[%emt 0:00:15]} Bg7 {[%emt 0:00:25]} 7. Nf3 {[%emt 0:00:23]} O-O {[%emt 0:01:02]} 8. O-O {[%emt 0:02:21]} Bg4 {[%emt 0:04:01]} 9. Be2 {[%emt 0:07:31]} Bxf3 {[%emt 0:01:55]} 10. gxf3 {[%emt 0:01:14]} Nbd7 {[%emt 0:00:44]} 11. f4 {[%emt 0:00:40]} Ne8 {[%emt 0:04:38]} 12. Be3 {[%emt 0:09:34]} f5 {[%emt 0:03:15]} 13. f3 {[%emt 0:01:17]} Nef6 {[%emt 0:05:41]} 14. Ra3 {[%emt 0:11:05]} Nh5 {[%emt 0:03:00]} 15. Rf2 {[%emt 0:08:38]} Rc8 {[%emt 0:06:11]} 16. Qd2 {[%emt 0:09:08]} g5 {[%emt 0:03:49]} 17. Rg2 {[%emt 0:03:17]} gxf4 {[%emt 0:01:53]} 18. Bxf4 {[%emt 0:01:09]} fxe4 {[%emt 0:01:14]} 19. Bh6 {[%emt 0:11:39]} exf3 {[%emt 0:04:58]} 20. Bxf3 {[%emt 0:00:28]} Rxf3 {[%emt 0:02:41]} 1/2-1/2